fUST/lending_fUST_20250502
["ID","MTS","AMOUNT","RATE_DAILY","PERIOD"]
[359568549,1746127840360,-4794.33654578,0.0002,2]
[359568550,1746127840370,-160.0,0.0002,3]
[359568551,1746127840379,-151.0,0.000202,4]
[359568552,1746127840390,-151.0,0.000202,4]
[359568553,1746127840401,-151.0,0.000202,4]
[359568554,1746127840411,-1286.49064724,0.00020698,2]
[359568555,1746127840422,-151.0,0.000209,3]
[359568556,1746127840434,-151.0,0.000209,3]
[359568557,1746127840443,-151.0,0.000209,3]
[359568558,1746127840453,-157.56,0.00021,2]
[359568559,1746127840462,-266.94622411,0.00021,2]
[359568560,1746127840472,-174.16373671,0.0002122,2]
[359568561,1746127840481,-151.0,0.00021323,2]
[359568562,1746127840491,-2333.48027396,0.00021419,2]
[359568563,1746127840500,-151.0,0.000215,4]
[359568564,1746127840511,-151.0,0.000216,3]
[359568565,1746127840521,-151.0,0.000216,4]
[359568566,1746127840531,-587.0,0.00021688,2]
[359568567,1746127840541,-587.0,0.00021688,2]
[359568568,1746127840550,-160.0,0.00021917,2]
[359568570,1746127840560,-500.0,0.00021918,2]
[359568572,1746127840570,-500.0,0.00021918,2]
[359568573,1746127840579,-580.62754532,0.00021918,2]
[359568574,1746127840589,-151.0,0.000222,9]
[359568575,1746127840599,-151.0,0.000222,5]
[359568576,1746127840608,-151.0,0.000222,7]
[359568577,1746127840618,-3112.7,0.00022551,2]
[359568578,1746127840628,-3112.7,0.00022551,2]
[359568579,1746127840637,-3112.7,0.00022551,2]
[359568580,1746127840647,-3112.7,0.00022551,2]
[359568581,1746127840657,-151.0,0.00022692,2]
[359568582,1746127840666,-494.15484802,0.00022734,2]
[359568583,1746127840676,-441.64321008,0.00022754,2]
[359568584,1746127840686,-151.0,0.000228,9]
[359568585,1746127840696,-286.59433024,0.00022895,5]
[359568586,1746127840706,-151.0,0.000229,7]
[359568587,1746127840715,-151.0,0.000229,9]
[359568588,1746127840725,-576.30121308,0.00023,7]
[359568589,1746127840735,-160.0,0.00023,3]
[359568590,1746127840745,-247.22811299,0.00023,2]
[359568591,1746127840757,-160.0,0.00023,3]
[359568592,1746127840767,-160.0,0.00023,3]
[359568593,1746127840777,-421.4777418,0.00023,3]
[359568594,1746127840787,-160.0,0.00023,3]
[359568595,1746127840798,-160.0,0.00023,3]
[359568596,1746127840808,-2333.48027396,0.0002306,2]
[359568597,1746127840819,-441.64321008,0.00023189,2]
[359568598,1746127840830,-1286.49064724,0.00023259,2]
[359568599,1746127840840,-160.0,0.00023287,2]
[359568600,1746127840850,-441.64321008,0.00023299,2]
[359568601,1746127840860,-151.0,0.000235,8]
[359568602,1746127840870,-151.0,0.000236,6]
[359568603,1746127840880,-151.0,0.000236,7]
[359568604,1746127840892,-823.0,0.00023659,2]
[359568605,1746127840902,-441.64321008,0.00023671,2]
[359568606,1746127840912,-160.0,0.00023697,2]
[359568607,1746127840921,-1043.49015613,0.00023752,2]
[359568608,1746127840932,-500.0,0.00023752,2]
[359568609,1746127840942,-1000.0,0.00023752,2]
[359568610,1746127840952,-926.74772129,0.00023752,2]
[359568611,1746127840961,-914.1333063,0.00023752,2]
[359568612,1746127840971,-466.4577424,0.0002387,2]
[359568613,1746127840981,-493.70386703,0.000239,2]
[359568614,1746127840991,-410.27838435,0.0002399,2]
[359568615,1746127841001,-160.0,0.00024,10]
[359568616,1746127841011,-841.10298755,0.00024,10]
[359568617,1746127841020,-160.0,0.00024,10]
[359568618,1746127841029,-421.4777418,0.00024,10]
[359568619,1746127841039,-160.0,0.00024,10]
[359568620,1746127841049,-1794.60513168,0.00024,10]
[359568621,1746127841059,-1794.60513149,0.00024,10]
[359568622,1746127841070,-1794.60513149,0.00024,10]
[359568623,1746127841080,-1794.60513149,0.00024,10]
[359568624,1746127841090,-1794.60513149,0.00024,10]
[359568625,1746127841100,-1794.60513149,0.00024,10]
[359568626,1746127841111,-1794.60513149,0.00024,10]
[359568627,1746127841122,-151.0,0.00024061,2]
[359568628,1746127841132,-250.0,0.00024084,2]
[359568629,1746127841142,-441.64321008,0.00024094,2]
[359568630,1746127841151,-151.0,0.000241,5]
[359568631,1746127841161,-441.64321008,0.00024151,2]
[359568632,1746127841170,-151.0,0.000242,7]
[359568633,1746127841180,-151.0,0.000242,8]
[359568634,1746127841190,-2519.114059,0.0002421,2]
[359568635,1746127841199,-1794.60513149,0.0002421,10]
[359568636,1746127841209,-41896.45431708,0.00024426,2]
[359568637,1746127841220,-441.64321008,0.00024521,2]
[359568638,1746127841229,-2333.48027396,0.000247,2]
[359568639,1746127841239,-2000.0,0.00024734,4]
[359568640,1746127841250,-500.0,0.00024773,2]
[359568641,1746127841261,-500.0,0.00024773,2]
[359568642,1746127841272,-500.0,0.00024773,2]
[359568643,1746127841281,-500.35887222,0.00024773,2]
[359568644,1746127841292,-500.0,0.00024773,2]
[359568645,1746127841301,-500.0,0.00024773,2]
[359568646,1746127841311,-500.0,0.00024773,2]
[359568647,1746127841320,-500.0,0.00024773,2]
[359568648,1746127841329,-500.0,0.00024773,2]
[359568649,1746127841339,-500.0,0.00024773,2]
[359568650,1746127841348,-606.60952904,0.00024773,2]
[359568651,1746127841362,-500.0,0.00024773,2]
[359568652,1746127841371,-300.0,0.00024773,2]
[359568653,1746127841381,-500.0,0.00024773,2]
[359568654,1746127841391,-500.0,0.00024773,2]
[359568655,1746127841403,-500.5028391,0.00024773,2]
[359568656,1746127841412,-177.70317533,0.00024773,2]
[359568657,1746127841422,-500.0,0.00024773,2]
[359568658,1746127841433,-500.0,0.00024773,2]
[359568659,1746127841443,-500.0,0.00024773,2]
[359568660,1746127841453,-500.0,0.00024799,2]
[359568661,1746127841462,-30699.66290161,0.00024799,2]
[359568662,1746127842438,-5321.07065005,0.00024799,2]
[359568670,1746127846795,-6885.58097299,0.00024799,2]
[359568671,1746127870202,250.0,0.000246,30]
[359568672,1746127927289,250.0,0.00018037,2]
[359568674,1746128019637,250.0,0.00018037,2]
[359568675,1746128133352,250.0,0.00018026,2]
[359568677,1746128169919,5373.91826005,0.00018025,2]
[359568678,1746128225827,250.0,0.00018026,2]
[359568680,1746128291807,57636.9148235,0.00018026,2]
[359568681,1746128331763,1936.27239648,0.00018099,2]
[359568682,1746128339365,250.0,0.00018025,2]
[359568683,1746128355071,1234.5735485,0.00018097,2]
[359568684,1746128414178,10000.0,0.000181,2]
[359568685,1746128427197,1685.55,0.000181,2]
[359568686,1746128471249,253.825536,0.000246,30]
[359568687,1746128487100,198.903293,0.00017335,2]
[359568688,1746128491854,328.7206248,0.00017198,2]
[359568689,1746128580586,2641.4377484,0.00017196,2]
[359568690,1746128591215,24900.0,0.00017196,2]
[359568691,1746128616804,1080.25185492,0.00018095,2]
[359568692,1746128625052,539.69265016,0.00018026,2]
[359568693,1746128672724,1549.0179172,0.00018095,2]
[359568694,1746128676534,378.318591,0.00017197,2]
[359568695,1746128703484,159.0,0.0002,9]
[359568699,1746128799014,1867.9507227,0.00017197,2]
[359568700,1746128876872,1060.27175233,0.00018093,2]
[359568709,1746129002124,2644.1621418,0.00017194,2]
[359568710,1746129013915,1239.21433376,0.00018092,2]
[359568743,1746129032277,-1000.0,0.00018126,2]
[359568744,1746129032287,-300.0,0.00018181,2]
[359568745,1746129032296,-1200.0,0.00018181,2]
[359568746,1746129032306,-300.0,0.00018181,2]
[359568747,1746129032315,-2166.9,0.00018182,3]
[359568748,1746129032325,-1083.45,0.00018182,3]
[359568749,1746129032334,-541.73,0.00018182,3]
[359568750,1746129032344,-270.86,0.00018182,3]
[359568751,1746129032354,-812.62,0.00018182,3]
[359568752,1746129032363,-197.0040348,0.00018191,2]
[359568753,1746129032372,-500.0,0.00018191,2]
[359568754,1746129032382,-170.60282284,0.00018191,2]
[359568755,1746129032391,-500.0,0.00018191,2]
[359568756,1746129032401,-524.63942523,0.00018191,2]
[359568757,1746129032411,-329.98245928,0.00018191,2]
[359568758,1746129032420,-500.0,0.00018191,2]
[359568759,1746129032431,-5631.21757558,0.00018192,2]
[359568760,1746129032441,-5631.21757558,0.00018192,2]
[359568761,1746129032451,-5631.21757558,0.00018192,2]
[359568762,1746129032460,-4020.50443146,0.00018192,2]
[359568763,1746129032472,-1374.37440975,0.00018192,2]
[359568764,1746129032574,-1279.19257051,0.00018193,2]
[359568765,1746129032586,-2587.89981392,0.00018193,2]
[359568766,1746129032597,-2750.0,0.00018193,2]
[359568767,1746129032609,-4450.0,0.00018193,2]
[359568768,1746129032670,-38932.90761557,0.00018193,2]
[359568769,1746129032679,-2519.114059,0.00018199,2]
[359568770,1746129032693,-320.0,0.00018199,2]
[359568771,1746129032704,-34008.24024262,0.000182,2]
[359568773,1746129037876,-624.20491612,0.000182,2]
[359568774,1746129037890,-179382.09484126,0.000182,2]
[359568775,1746129037900,-151.0,0.000182,2]
[359568776,1746129037911,-151.0,0.000182,2]
[359568777,1746129037921,-151.0,0.000182,2]
[359568778,1746129037931,-151.0,0.000182,2]
[359568781,1746129038236,-151.0,0.000182,2]
[359568782,1746129038247,-608.190841,0.000182,2]
[359568783,1746129038257,-608.190841,0.000182,2]
[359568784,1746129038267,-151.0,0.000182,2]
[359568785,1746129038277,-151.0,0.000182,2]
[359568786,1746129038287,-151.0,0.000182,2]
[359568787,1746129038296,-156.936783,0.000182,2]
[359568788,1746129038306,-151.0,0.000182,2]
[359568789,1746129038316,-151.0,0.000182,2]
[359568790,1746129038326,-151.0,0.000182,2]
[359568791,1746129038336,-151.0,0.000182,2]
[359568792,1746129038346,-151.0,0.000182,2]
[359568793,1746129038356,-686.873696,0.000182,2]
[359568794,1746129038365,-151.0,0.000182,2]
[359568795,1746129038375,-151.0,0.000182,2]
[359568796,1746129038385,-151.0,0.000182,2]
[359568797,1746129038394,-151.0,0.000182,2]
[359568798,1746129038406,-191.027064,0.000182,2]
[359568799,1746129038416,-1060.830763,0.000182,2]
[359568800,1746129038426,-191.027064,0.000182,2]
[359568801,1746129038436,-1060.830763,0.000182,2]
[359568802,1746129038446,-164.858528,0.000182,2]
[359568803,1746129038457,-151.0,0.000182,2]
[359568804,1746129038467,-164.858528,0.000182,2]
[359568805,1746129038477,-462.737373,0.000182,2]
[359568806,1746129038488,-462.737373,0.000182,2]
[359568807,1746129038498,-151.0,0.000182,2]
[359568808,1746129038508,-272.268992,0.000182,2]
[359568809,1746129038518,-151.0,0.000182,2]
[359568810,1746129038528,-369.948995,0.000182,2]
[359568811,1746129038538,-369.948995,0.000182,2]
[359568812,1746129038548,-151.0,0.000182,2]
[359568813,1746129038559,-151.0,0.000182,2]
[359568814,1746129038569,-185.663178,0.000182,2]
[359568815,1746129038579,-151.0,0.000182,2]
[359568816,1746129038589,-198.316186,0.000182,2]
[359568817,1746129038599,-151.0,0.000182,2]
[359568818,1746129038609,-219.760607,0.000182,2]
[359568819,1746129038619,-219.760607,0.000182,2]
[359568820,1746129038630,-180.60734,0.000182,2]
[359568821,1746129038640,-180.60734,0.000182,2]
[359568822,1746129038650,-151.0,0.000182,2]
[359568823,1746129038659,-253.718316,0.000182,2]
[359568824,1746129038669,-151.0,0.000182,2]
[359568825,1746129038679,-151.0,0.000182,2]
[359568826,1746129038692,-164.786116,0.00018236,2]
[359568827,1746129038703,-164.786116,0.00018236,2]
[359568828,1746129038713,-500.0,0.00018273,2]
[359568829,1746129038723,-152.0,0.00018387,2]
[359568830,1746129038736,-151.0,0.00018585,2]
[359568831,1746129038746,-151.0,0.000188,2]
[359568832,1746129038757,-193.0,0.000188,2]
[359568833,1746129038769,-151.0,0.000189,2]
[359568834,1746129038780,-698.63188306,0.000189,2]
[359568835,1746129038790,-9337.62940358,0.00019003,2]
[359568836,1746129038801,-195.368983,0.00019178,2]
[359568837,1746129038811,-437.357183,0.00019178,2]
[359568838,1746129038821,-437.357183,0.00019178,2]
[359568839,1746129038831,-246.0,0.00019223,2]
[359568840,1746129038842,-151.0,0.000193,2]
[359568841,1746129038853,-841.10298755,0.00019328,3]
[359568842,1746129038863,-182.07995741,0.00019328,3]
[359568843,1746129038873,-8206.49365714,0.00019329,3]
[359568844,1746129038882,-160.0,0.00019329,3]
[359568845,1746129038892,-160.0,0.00019329,3]
[359568846,1746129038902,-151.0,0.00019329,2]
[359568847,1746129038912,-369.948995,0.00019329,2]
[359568848,1746129038922,-369.948995,0.00019329,2]
[359568849,1746129038932,-151.0,0.00019329,2]
[359568850,1746129038942,-151.0,0.00019329,2]
[359568851,1746129038952,-151.0,0.00019329,2]
[359568852,1746129038963,-437.357183,0.00019329,2]
[359568853,1746129038973,-437.357183,0.00019329,2]
[359568854,1746129038987,-409.442662,0.00019329,2]
[359568855,1746129038997,-409.442662,0.00019329,2]
[359568856,1746129039015,-151.0,0.00019329,2]
[359568857,1746129039025,-151.0,0.00019329,2]
[359568858,1746129039035,-4678.53092,0.00019329,2]
[359568859,1746129039046,-4678.53092,0.00019329,2]
[359568860,1746129039057,-219.760607,0.00019329,2]
[359568861,1746129039067,-219.760607,0.00019329,2]
[359568862,1746129039078,-180.60734,0.00019329,2]
[359568863,1746129039089,-180.60734,0.00019329,2]
[359568864,1746129039099,-151.0,0.00019329,2]
[359568865,1746129039108,-238.308239,0.00019329,2]
[359568866,1746129039118,-151.0,0.00019329,2]
[359568867,1746129039128,-100000.0,0.00019329,2]
[359568868,1746129039138,-1239.21433374,0.0001947,2]
[359568869,1746129039149,-151.0,0.000195,2]
[359568870,1746129039159,-151.0,0.000195,2]
[359568871,1746129039168,-4333.8,0.00019552,3]
[359568872,1746129039178,-2166.9,0.00019552,3]
[359568873,1746129039187,-1083.46,0.00019552,3]
[359568874,1746129039197,-541.72,0.00019552,3]
[359568875,1746129039207,-1060.830763,0.00019557,2]
[359568876,1746129039219,-1060.830763,0.00019557,2]
[359568877,1746129039231,-164.858528,0.00019557,2]
[359568878,1746129039242,-151.0,0.00019557,2]
[359568879,1746129039251,-164.858528,0.00019557,2]
[359568880,1746129039261,-462.737373,0.00019557,2]
[359568881,1746129039270,-462.737373,0.00019557,2]
[359568882,1746129039280,-173.643399,0.00019557,2]
[359568883,1746129039289,-173.643399,0.00019557,2]
[359568884,1746129039298,-151.0,0.00019557,2]
[359568885,1746129039308,-210.454157,0.00019557,2]
[359568886,1746129039317,-151.0,0.00019557,2]
[359568887,1746129039334,-186.921263,0.00019557,2]
[359568888,1746129039348,-151.0,0.00019557,2]
[359568889,1746129039358,-186.921263,0.00019557,2]
[359568890,1746129039368,-299.411096,0.00019557,2]
[359568891,1746129039379,-299.411096,0.00019557,2]
[359568892,1746129039389,-369.948995,0.00019557,2]
[359568893,1746129039399,-369.948995,0.00019557,2]
[359568894,1746129039410,-151.0,0.00019557,2]
[359568895,1746129039419,-151.0,0.00019557,2]
[359568896,1746129039430,-151.0,0.00019557,2]
[359568897,1746129039440,-437.357183,0.00019557,2]
[359568898,1746129039451,-437.357183,0.00019557,2]
[359568899,1746129039461,-409.442662,0.00019557,2]
[359568900,1746129039471,-409.442662,0.00019557,2]
[359568901,1746129039481,-151.0,0.00019557,2]
[359568902,1746129039493,-157.27545,0.00019557,2]
[359568903,1746129039503,-4678.53092,0.00019557,2]
[359568904,1746129039514,-4678.53092,0.00019557,2]
[359568905,1746129039524,-219.760607,0.00019557,2]
[359568906,1746129039536,-219.760607,0.00019557,2]
[359568907,1746129039546,-180.60734,0.00019557,2]
[359568908,1746129039556,-180.60734,0.00019557,2]
[359568909,1746129039566,-151.0,0.00019557,2]
[359568910,1746129039575,-151.0,0.00019557,2]
[359568911,1746129039585,-239.0,0.00019656,2]
[359568912,1746129039595,-420.0,0.00019834,2]
[359568913,1746129039605,-420.0,0.00019834,2]
[359568914,1746129039615,-151.0,0.000199,2]
[359568915,1746129039625,-151.0,0.00019904,2]
[359568916,1746129039635,-1680.0,0.00019931,2]
[359568917,1746129039645,-151.0,0.00019954,2]
[359568918,1746129039655,-163.68406202,0.00019959,2]
[359568919,1746129039665,-160.0,0.0002,3]
[359568920,1746129039676,-160.0,0.0002,3]
[359568921,1746129039688,-151.0,0.000201,4]
[359568922,1746129039698,-151.0,0.000202,3]
[359568923,1746129039709,-151.0,0.000205,4]
[359568924,1746129039719,-151.0,0.000208,4]
[359568925,1746129039731,-1239.21433374,0.00020849,2]
[359568926,1746129039743,-151.0,0.000209,4]
[359568927,1746129039755,-151.0,0.00021,4]
[359568928,1746129039766,-157.56,0.00021,2]
[359568929,1746129039776,-151.0,0.00021323,2]
[359568930,1746129039787,-151.0,0.000214,3]
[359568931,1746129039798,-151.0,0.000215,4]
[359568932,1746129039809,-151.0,0.000216,4]
[359568933,1746129039819,-587.0,0.00021637,2]
[359568935,1746129039829,-587.0,0.00021637,2]
[359568936,1746129039840,-511.0,0.0002185,2]
[359568937,1746129039851,-2000.0,0.00021895,4]
[359568938,1746129039861,-160.0,0.00021917,2]
[359568939,1746129039871,-1304.0608909,0.00021918,7]
[359568940,1746129039882,-500.0,0.00021918,2]
[359568941,1746129039892,-500.0,0.00021918,2]
[359568942,1746129039902,-274.46547754,0.00021918,2]
[359568943,1746129039914,-500.0,0.00021918,2]
[359568944,1746129039924,-151.0,0.000221,5]
[359568945,1746129039935,-151.0,0.000222,8]
[359568946,1746129039945,-151.0,0.000222,8]
[359568947,1746129039956,-1239.21433374,0.00022227,2]
[359568948,1746129039966,-151.0,0.00022692,2]
[359568949,1746129039976,-151.0,0.000227,9]
[359568951,1746129039987,-151.0,0.000228,8]
[359568953,1746129039997,-151.0,0.000229,10]
[359568955,1746129040009,-441.64321008,0.00022936,2]
[359568957,1746129040019,-160.0,0.00023,3]
[359568959,1746129040029,-160.0,0.00023,3]
[359568962,1746129040040,-160.0,0.00023,3]
[359568964,1746129040049,-160.0,0.00023,3]
[359568966,1746129040060,-421.4777418,0.00023,3]
[359568968,1746129040070,-1060.2717523,0.00023149,2]
[359568970,1746129040080,-441.64321008,0.00023169,2]
[359568972,1746129040090,-160.0,0.00023287,2]
[359568974,1746129040100,-151.0,0.000233,8]
[359568976,1746129040111,-441.64321008,0.00023372,2]
[359568978,1746129040121,-151.0,0.000234,8]
[359568980,1746129040130,-441.64321008,0.00023588,2]
[359568982,1746129040140,-151.0,0.000236,7]
[359568984,1746129040151,-823.0,0.00023604,2]
[359568985,1746129040161,-1239.21433374,0.00023605,2]
[359568987,1746129040171,-102190.54091518,0.00023661,2]
[359568989,1746129040181,-2000.0,0.00023705,4]
[359568991,1746129040191,-1043.49015613,0.00023752,2]
[359568993,1746129040201,-160.0,0.000239,10]
[359568994,1746129040212,-151.0,0.000239,7]
[359568995,1746129040222,-151.0,0.000239,7]
[359568996,1746129040232,-151.0,0.000239,7]
[359568997,1746129040244,-220.806371,0.000239,7]
[359568998,1746129040254,-151.0,0.000239,7]
[359568999,1746129040264,-266.522939,0.000239,7]
[359569000,1746129040275,-266.522939,0.000239,7]
[359569001,1746129040285,-151.0,0.000239,7]
[359569002,1746129040307,-381.369101,0.000239,7]
[359569003,1746129040317,-381.369101,0.000239,7]
[359569004,1746129040327,-151.0,0.000239,7]
[359569005,1746129040337,-313.5174939,0.000239,10]
[359569006,1746129040347,-698.63188306,0.000239,2]
[359569007,1746129040357,-841.10298755,0.000239,10]
[359569008,1746129040367,-2249.52173775,0.000239,10]
[359569009,1746129040378,-2249.52173773,0.000239,10]
[359569010,1746129040387,-1772.64150627,0.000239,10]
[359569011,1746129040677,-476.88023146,0.000239,10]
[359569012,1746129040690,-1314.21976854,0.000239,10]
[359569013,1746129040705,-374.55079505,0.000239,10]
[359569014,1746129040717,-560.75117414,0.000239,10]
[359569015,1746129040727,-182.84701597,0.000239,10]
[359569016,1746129040971,-160.0,0.00023,3]
[359569017,1746129040981,-550.86767525,0.000239,10]
[359569025,1746129043050,-421.16866927,0.000239,10]
[359569026,1746129043061,-497.69039575,0.000239,10]
[359569070,1746129047440,-500.0,0.00018191,2]
[359569071,1746129047450,-579.63151272,0.00018191,2]
[359569072,1746129047460,-3753.81007692,0.00018191,2]
[359569073,1746129047469,-167.38667562,0.00018191,2]
[359569074,1746129047478,-3753.81007692,0.00018191,2]
[359569075,1746129047488,-3753.81007692,0.00018191,2]
[359569076,1746129047497,-3753.81007692,0.00018191,2]
[359569077,1746129047507,-3753.81007692,0.00018191,2]
[359569078,1746129047517,-3753.81007692,0.00018191,2]
[359569079,1746129047526,-3753.81007692,0.00018191,2]
[359569080,1746129047536,-3753.81007692,0.00018191,2]
[359569081,1746129047545,-3753.81007692,0.00018191,2]
[359569082,1746129047555,-3753.81007692,0.00018191,2]
[359569083,1746129047565,-3753.81007692,0.00018191,2]
[359569084,1746129047574,-3753.81007692,0.00018191,2]
[359569085,1746129047584,-3753.81007692,0.00018191,2]
[359569086,1746129047594,-3753.81007692,0.00018191,2]
[359569087,1746129047604,-3753.81007692,0.00018191,2]
[359569088,1746129047613,-3753.81007692,0.00018191,2]
[359569089,1746129047623,-3753.81007692,0.00018191,2]
[359569090,1746129047633,-3753.81007692,0.00018191,2]
[359569091,1746129047642,-3753.81007692,0.00018191,2]
[359569092,1746129047652,-3753.81007692,0.00018191,2]
[359569093,1746129047661,-3753.81007692,0.00018191,2]
[359569094,1746129047671,-3753.81007692,0.00018191,2]
[359569095,1746129047680,-3753.81007692,0.00018191,2]
[359569096,1746129047693,-3753.81007692,0.00018191,2]
[359569097,1746129047702,-3753.81007692,0.00018191,2]
[359569098,1746129047712,-3753.81007692,0.00018191,2]
[359569099,1746129047721,-3753.81007692,0.00018191,2]
[359569100,1746129047731,-3753.81007692,0.00018191,2]
[359569101,1746129047740,-3753.81007692,0.00018191,2]
[359569102,1746129047750,-3753.81007692,0.00018191,2]
[359569103,1746129047760,-3753.81007692,0.00018191,2]
[359569104,1746129047770,-3753.81007692,0.00018191,2]
[359569105,1746129047780,-3753.81007692,0.00018191,2]
[359569106,1746129047789,-3753.81007692,0.00018191,2]
[359569107,1746129047799,-3753.81007692,0.00018191,2]
[359569108,1746129047809,-3753.81007692,0.00018191,2]
[359569109,1746129047819,-3753.81007692,0.00018191,2]
[359569110,1746129047829,-3753.81007692,0.00018191,2]
[359569111,1746129047839,-3753.81007692,0.00018191,2]
[359569112,1746129047849,-3753.81007692,0.00018191,2]
[359569113,1746129047859,-3753.81007692,0.00018191,2]
[359569114,1746129047868,-317.73439499,0.00018191,2]
[359569115,1746129047878,-3753.81007692,0.00018191,2]
[359569116,1746129047887,-3753.81007692,0.00018191,2]
[359569117,1746129047897,-3753.81007692,0.00018191,2]
[359569118,1746129047907,-3753.81007692,0.00018191,2]
[359569119,1746129047916,-3753.81007692,0.00018191,2]
[359569120,1746129047926,-564.642742,0.000182,2]
[359569121,1746129047935,-596.94798149,0.000239,10]
[359569122,1746129047945,-2249.52173773,0.000239,10]
[359569123,1746129047955,-2249.52173773,0.000239,10]
[359569124,1746129047965,-182.07995741,0.000239,10]
[359569125,1746129047974,-250.0,0.0002395,2]
[359569126,1746129047984,-151.0,0.00024,7]
[359569127,1746129047994,-178.368125,0.00024,2]
[359569128,1746129048003,-160.0,0.00024,10]
[359569129,1746129048013,-160.0,0.00024,10]
[359569130,1746129048023,-421.4777418,0.00024,10]
[359569131,1746129048032,-160.0,0.00024,10]
[359569132,1746129048043,-441.64321008,0.00024033,2]
[359569133,1746129048053,-151.0,0.00024061,2]
[359569134,1746129048063,-151.0,0.000242,7]
[359569135,1746129048072,-2249.52173773,0.0002421,10]
[359569136,1746129048082,-441.64321008,0.00024264,2]
[359569137,1746129048092,-183.532,0.00024309,6]
[359569138,1746129048102,-494.08560526,0.00024309,2]
[359569139,1746129048111,-362.0172928,0.00024329,2]
[359569140,1746129048121,-362.0172928,0.00024329,2]
[359569141,1746129048131,-362.0172928,0.00024329,2]
[359569142,1746129048142,-362.0172928,0.00024329,2]
[359569143,1746129048154,-330.26624829,0.000244,2]
[359569144,1746129048164,-5618.10258556,0.00024552,2]
[359569145,1746129048174,-441.64321008,0.00024592,2]
[359569146,1746129048185,-41896.45431708,0.00024651,2]
[359569147,1746129048195,-151.0,0.00024651,7]
[359569148,1746129048205,-197.251598,0.00024651,7]
[359569149,1746129048215,-151.0,0.00024651,7]
[359569150,1746129048225,-608.190841,0.00024651,7]
[359569151,1746129048234,-608.190841,0.00024651,7]
[359569152,1746129048244,-172.718298,0.00024651,7]
[359569153,1746129048254,-151.0,0.00024651,7]
[359569154,1746129048264,-151.0,0.00024651,7]
[359569155,1746129048273,-151.0,0.00024651,7]
[359569156,1746129048282,-151.0,0.00024651,7]
[359569157,1746129048292,-151.0,0.00024651,7]
[359569158,1746129048301,-686.873696,0.00024651,7]
[359569159,1746129048311,-151.0,0.00024651,7]
[359569160,1746129048321,-151.0,0.00024651,7]
[359569161,1746129048330,-151.0,0.00024651,7]
[359569162,1746129048339,-151.0,0.00024651,7]
[359569163,1746129048349,-191.027064,0.00024651,7]
[359569164,1746129048359,-191.027064,0.00024651,7]
[359569165,1746129048369,-173.643399,0.00024651,7]
[359569166,1746129048378,-173.643399,0.00024651,7]
[359569167,1746129048387,-151.0,0.00024651,7]
[359569168,1746129048397,-151.0,0.00024651,7]
[359569169,1746129048407,-186.921263,0.00024651,7]
[359569170,1746129048416,-151.0,0.00024651,7]
[359569171,1746129048425,-186.921263,0.00024651,7]
[359569172,1746129048435,-299.411096,0.00024651,7]
[359569173,1746129048444,-299.411096,0.00024651,7]
[359569174,1746129048454,-151.0,0.00024651,7]
[359569175,1746129048464,-369.948995,0.00024651,7]
[359569176,1746129048474,-369.948995,0.00024651,7]
[359569177,1746129048483,-157.282533,0.00024651,7]
[359569178,1746129048493,-151.0,0.00024651,7]
[359569179,1746129048502,-151.0,0.00024651,7]